fUSD/lending_fUSD_20250113
["ID","MTS","AMOUNT","RATE_DAILY","PERIOD"]
[348706912,1736736642234,-1064.95,9.998e-05,2]
[348706913,1736736642243,-161.117506,9.998e-05,2]
[348706914,1736736642252,-580.38,9.998e-05,2]
[348706915,1736736642261,-500.0,9.998e-05,2]
[348706916,1736736642312,-1565.65,9.998e-05,2]
[348706917,1736736642321,-500.0,9.998e-05,2]
[348706918,1736736642331,-500.0,9.998e-05,2]
[348706919,1736736642340,-500.0,9.998e-05,2]
[348706920,1736736642351,-500.0,9.998e-05,2]
[348706921,1736736642361,-500.0,9.998e-05,2]
[348706922,1736736642370,-500.0,9.998e-05,2]
[348706923,1736736642381,-665.48,9.998e-05,2]
[348706924,1736736642390,-500.0,9.998e-05,2]
[348706925,1736736642399,-500.0,9.998e-05,2]
[348706926,1736736642408,-1768.26,9.998e-05,2]
[348706927,1736736642418,-541.5,9.998e-05,2]
[348706928,1736736642430,-504.2078541,9.998e-05,2]
[348706929,1736736642439,-500.0,9.998e-05,2]
[348706930,1736736642447,-500.0,9.998e-05,2]
[348706931,1736736642456,-985.25,9.998e-05,2]
[348706932,1736736642467,-1946.39,9.998e-05,2]
[348706933,1736736642476,-500.0,9.998e-05,2]
[348706934,1736736642484,-796.89,9.998e-05,2]
[348706935,1736736642493,-586.86,9.998e-05,2]
[348706936,1736736642504,-500.0,9.998e-05,2]
[348706937,1736736642513,-276.02539637,9.998e-05,2]
[348706938,1736736642522,-500.0,9.998e-05,2]
[348706939,1736736642531,-1026.18,9.998e-05,2]
[348706940,1736736642540,-810.71,9.998e-05,2]
[348706941,1736736642549,-500.0,9.998e-05,2]
[348706942,1736736642558,-1834.33,9.998e-05,2]
[348706943,1736736642567,-500.0,9.998e-05,2]
[348706944,1736736642576,-2083.88339502,9.998e-05,2]
[348706945,1736736642585,-200.0,9.998e-05,2]
[348706946,1736736642594,-209.45940181,9.999e-05,2]
[348706947,1736736642603,-500.0,9.999e-05,2]
[348706948,1736736642611,-500.0,9.999e-05,2]
[348706949,1736736642621,-500.3599464,9.999e-05,2]
[348706950,1736736642630,-500.65130085,9.999e-05,2]
[348706952,1736736642639,-503.82334361,9.999e-05,2]
[348706955,1736736642648,-500.77020984,9.999e-05,2]
[348706957,1736736642658,-501.5321157,9.999e-05,2]
[348706959,1736736642667,-500.0,9.999e-05,2]
[348706961,1736736642676,-500.16043089,9.999e-05,2]
[348706963,1736736642685,-500.0,9.999e-05,2]
[348706965,1736736642694,-500.38288005,9.999e-05,2]
[348706967,1736736642702,-500.53692687,9.999e-05,2]
[348706969,1736736642712,-500.90117774,9.999e-05,2]
[348706971,1736736642721,-500.18848533,9.999e-05,2]
[348706972,1736736642731,-500.75974895,9.999e-05,2]
[348706973,1736736642740,-200.41462128,9.999e-05,2]
[348706974,1736736642749,-500.31109199,9.999e-05,2]
[348706975,1736736642758,-500.15725439,9.999e-05,2]
[348706976,1736736642767,-500.0,9.999e-05,2]
[348706977,1736736642776,-500.53963215,9.999e-05,2]
[348706978,1736736642785,-500.0,9.999e-05,2]
[348706979,1736736642794,-500.75632392,9.999e-05,2]
[348706981,1736736642803,-500.6041815,9.999e-05,2]
[348706983,1736736642812,-500.65315437,9.999e-05,2]
[348706985,1736736642821,-503.95624794,9.999e-05,2]
[348706988,1736736642831,-500.75831535,9.999e-05,2]
[348706991,1736736642840,-505.0286599,9.999e-05,2]
[348706993,1736736642849,-302.24167041,9.999e-05,2]
[348706997,1736736642858,-500.0,9.999e-05,2]
[348706999,1736736642868,-502.8114493,9.999e-05,2]
[348707001,1736736642877,-503.8001967,9.999e-05,2]
[348707003,1736736642887,-504.9315983,9.999e-05,2]
[348707005,1736736642896,-502.96795002,9.999e-05,2]
[348707007,1736736642907,-500.7817208,9.999e-05,2]
[348707009,1736736642916,-561.04,9.999e-05,2]
[348707010,1736736642925,-500.0,9.999e-05,2]
[348707011,1736736642934,-681.84,9.999e-05,2]
[348707012,1736736642943,-703.51,9.999e-05,2]
[348707013,1736736642953,-672.14,9.999e-05,2]
[348707014,1736736642963,-522.01,9.999e-05,2]
[348707015,1736736642972,-774.96,9.999e-05,2]
[348707016,1736736642981,-939.34,9.999e-05,2]
[348707017,1736736642990,-891.36,9.999e-05,2]
[348707018,1736736642999,-1622.93,9.999e-05,2]
[348707019,1736736643007,-2365.75,9.999e-05,2]
[348707020,1736736643016,-540.88,9.999e-05,2]
[348707021,1736736643025,-500.0,9.999e-05,2]
[348707022,1736736643034,-603.96,9.999e-05,2]
[348707023,1736736643044,-500.0,9.999e-05,2]
[348707024,1736736643053,-500.0,9.999e-05,2]
[348707025,1736736643062,-1220.86,9.999e-05,2]
[348707026,1736736643071,-500.0,9.999e-05,2]
[348707027,1736736643081,-500.0,9.999e-05,2]
[348707028,1736736643090,-500.0,9.999e-05,2]
[348707029,1736736643100,-515.02626342,9.999e-05,2]
[348707030,1736736643110,-507.41880134,9.999e-05,2]
[348707031,1736736643120,-602.73,9.999e-05,2]
[348707032,1736736643130,-617.94,9.999e-05,2]
[348707033,1736736643140,-1263.42,9.999e-05,2]
[348707034,1736736643149,-751.06,9.999e-05,2]
[348707035,1736736643159,-631.59,9.999e-05,2]
[348707036,1736736643167,-557.01,9.999e-05,2]
[348707037,1736736643176,-500.0,9.999e-05,2]
[348707038,1736736643186,-532.66,9.999e-05,2]
[348707039,1736736643195,-608.71,9.999e-05,2]
[348707040,1736736643204,-669.47,9.999e-05,2]
[348707041,1736736643214,-1000.0,9.999e-05,2]
[348707042,1736736643223,-500.0,9.999e-05,2]
[348707043,1736736643233,-500.0,9.999e-05,2]
[348707044,1736736643242,-513.25,9.999e-05,2]
[348707045,1736736643251,-500.0,9.999e-05,2]
[348707046,1736736643260,-1485.23,9.999e-05,2]
[348707047,1736736643269,-937.79,9.999e-05,2]
[348707048,1736736643279,-1213.52,9.999e-05,2]
[348707049,1736736643288,-541.5,9.999e-05,2]
[348707050,1736736643297,-541.5,9.999e-05,2]
[348707051,1736736643306,-541.5,9.999e-05,2]
[348707052,1736736643315,-541.5,9.999e-05,2]
[348707053,1736736643324,-541.5,9.999e-05,2]
[348707054,1736736643333,-541.5,9.999e-05,2]
[348707055,1736736643342,-541.5,9.999e-05,2]
[348707056,1736736643351,-541.5,9.999e-05,2]
[348707057,1736736643360,-541.5,9.999e-05,2]
[348707058,1736736643370,-541.5,9.999e-05,2]
[348707060,1736736643379,-801.63,9.999e-05,2]
[348707062,1736736643388,-541.5,9.999e-05,2]
[348707064,1736736643397,-541.5,9.999e-05,2]
[348707066,1736736643406,-541.5,9.999e-05,2]
[348707068,1736736643415,-541.5,9.999e-05,2]
[348707072,1736736643426,-541.5,9.999e-05,2]
[348707074,1736736643437,-541.5,9.999e-05,2]
[348707077,1736736643446,-541.5,9.999e-05,2]
[348707079,1736736643455,-541.5,9.999e-05,2]
[348707080,1736736643465,-541.5,9.999e-05,2]
[348707082,1736736643474,-541.5,9.999e-05,2]
[348707084,1736736643483,-541.5,9.999e-05,2]
[348707086,1736736643492,-541.5,9.999e-05,2]
[348707088,1736736643502,-541.58950814,9.999e-05,2]
[348707090,1736736643511,-1932.27,9.999e-05,2]
[348707092,1736736643521,-614.1,9.999e-05,2]
[348707094,1736736643530,-508.39,9.999e-05,2]
[348707096,1736736643539,-742.88,9.999e-05,2]
[348707098,1736736643548,-2142.2,9.999e-05,2]
[348707100,1736736643557,-934.0,0.0001,2]
[348707102,1736736643566,-16397203.27216208,0.0001,2]
[348707108,1736736643613,-18686.05171559,0.0001,2]
[348707111,1736736643625,-9383.4051018,0.0001,2]
[348707113,1736736643635,-12010.14963859,0.0001,2]
[348707115,1736736643646,-3161.43957372,0.0001,2]
[348707117,1736736643657,-687.95441949,0.0001,2]
[348707119,1736736643667,-283.21769049,0.0001,2]
[348707122,1736736643679,-2627.25344344,0.0001,2]
[348707137,1736736643810,-903.975,0.0001,2]
[348707139,1736736643822,-1106.25974745,0.0001,2]
[348707141,1736736643833,-5679.46858348,0.0001,2]
[348707143,1736736643844,-998.82119817,0.0001,2]
[348707165,1736736644121,-644.68702589,9.4e-05,3]
[348707167,1736736644133,-355.31297411,9.4e-05,3]
[348707169,1736736644142,-156.14280571,9.726e-05,2]
[348707171,1736736644153,-335.78341842,9.726e-05,2]
[348707179,1736736644212,-926.54484335,9.726e-05,2]
[348707181,1736736644223,-5055.01152957,9.726e-05,2]
[348707183,1736736644235,-4914.98244791,9.726e-05,2]
[348707185,1736736644246,-463.898,9.726e-05,2]
[348707187,1736736644257,-941.7,9.726e-05,2]
[348707190,1736736644267,-665.92468559,9.726e-05,2]
[348707213,1736736644480,-946.31594383,9.5e-05,3]
[348707215,1736736644492,-411.14884864,9.5e-05,3]
[348707220,1736736644529,-142.53520753,9.5e-05,3]
[348707222,1736736644538,-1255.31784587,9.6e-05,3]
[348707366,1736736645959,-744.68215413,9.6e-05,3]
[348707368,1736736645970,-2500.0,9.7e-05,3]
[348707370,1736736645979,-9006.32116383,9.726e-05,2]
[348707372,1736736645989,-500.0,9.997e-05,2]
[348707374,1736736646000,-500.0,9.997e-05,2]
[348707376,1736736646010,-500.0,9.997e-05,2]
[348707378,1736736646019,-500.0,9.997e-05,2]
[348707380,1736736646028,-500.0,9.997e-05,2]
[348707382,1736736646038,-500.0,9.997e-05,2]
[348707384,1736736646048,-500.0,9.997e-05,2]
[348707386,1736736646057,-500.0,9.998e-05,2]
[348707388,1736736646066,-179265.17764885,0.0001,2]
[348707391,1736736646078,-91211.76432186,0.0001,2]
[348707397,1736736646129,-351.88110689,0.0001,2]
[348707405,1736736646189,-868.3271691,0.0001,2]
[348708021,1736736668402,500.0,8.494e-05,2]
[348708022,1736736730265,500.0,8.464e-05,2]
[348708023,1736736745556,731.48,8.219e-05,2]
[348708024,1736736808339,500.0,8.464e-05,2]
[348708025,1736737002938,179.39,0.00023,120]
[348708027,1736737163334,183.06,8.84e-05,2]
[348708028,1736737177946,2606.51733473,0.00023,120]
[348708029,1736737180434,160.9,8.84e-05,2]
[348708030,1736737209343,10399.566,8.953e-05,2]
[348708031,1736737290410,1000.0,8.843e-05,2]
[348708032,1736737290587,918.788146,0.00023,120]
[348708033,1736737291925,156.56,8.843e-05,2]
[348708034,1736737292159,156.56,8.848e-05,2]
[348708035,1736737292547,156.56,8.852e-05,2]
[348708036,1736737292790,156.56,8.857e-05,2]
[348708037,1736737293030,156.56,8.861e-05,2]
[348708038,1736737293212,156.56,8.865e-05,2]
[348708039,1736737293611,156.56,8.87e-05,2]
[348708040,1736737293841,156.56,8.874e-05,2]
[348708041,1736737294122,156.56,8.879e-05,2]
[348708042,1736737294325,156.56,8.883e-05,2]
[348708043,1736737294558,156.56,8.887e-05,2]
[348708044,1736737396204,15455.72,8.846e-05,2]
[348708045,1736737410295,2000.0,8.8e-05,2]
[348708046,1736737479088,390.95,8.858e-05,2]
[348708047,1736737531571,500.0,8.854e-05,3]
[348708048,1736737566670,250.0,8.819e-05,2]
[348708049,1736737659782,583.46,8.83e-05,2]
[348708050,1736737678097,200.0,8.841e-05,2]
[348708051,1736737717002,247.49,8.832e-05,2]
[348708053,1736737766229,806.91,8.219e-05,2]
[348708057,1736737832142,-300.0,8.993e-05,2]
[348708058,1736737832151,-5099.46644,8.994e-05,2]
[348708059,1736737832373,-1808.55999338,8.994e-05,2]
[348708060,1736737832385,-1532.98356662,8.994e-05,2]
[348708061,1736737832394,-1614.84529189,8.994e-05,2]
[348708062,1736737832403,-2888.55982857,8.994e-05,2]
[348708063,1736737832412,-1825.79161413,9.023e-05,2]
[348708064,1736737832423,-1735.93838587,9.023e-05,2]
[348708065,1736737832433,-764.96,9.069e-05,2]
[348708066,1736737832443,-194.92,9.111e-05,2]
[348708067,1736737832454,-150.0,9.223e-05,2]
[348708068,1736737832463,-46718.0,9.224e-05,2]
[348708069,1736737832472,-3850.93629873,9.257e-05,2]
[348708070,1736737832481,-243.58,9.257e-05,2]
[348708071,1736737832490,-1443.16,9.257e-05,2]
[348708072,1736737832500,-1001.32293127,9.317e-05,2]
[348708073,1736737832509,-4769.87,9.318e-05,2]
[348708074,1736737832518,-150.99,9.318e-05,2]
[348708075,1736737832530,-1540.06,9.318e-05,2]
[348708076,1736737832539,-440.44,9.425e-05,2]
[348708077,1736737832548,-404.18,9.425e-05,2]
[348708078,1736737832557,-156.348,9.5e-05,2]
[348708079,1736737832566,-150.0,9.726e-05,2]
[348708080,1736737832576,-150.0,9.727e-05,2]
[348708081,1736737832585,-150.0,9.728e-05,2]
[348708082,1736737832594,-150.0,9.728e-05,2]
[348708083,1736737832603,-150.0,9.738e-05,2]
[348708084,1736737832612,-150.0,9.738e-05,2]
[348708085,1736737832621,-150.0,9.753e-05,2]
[348708086,1736737832630,-150.0,9.76e-05,2]
[348708087,1736737832639,-150.0,9.769e-05,2]
[348708088,1736737832648,-150.0,9.779e-05,2]
[348708089,1736737832657,-150.0,9.78e-05,2]
[348708090,1736737832666,-150.0,9.794e-05,2]
[348708091,1736737832675,-265.6203,9.798e-05,2]
[348708092,1736737832684,-1671.45,9.798e-05,2]
[348708093,1736737832694,-1895.4294,9.798e-05,2]
[348708094,1736737832703,-1500.0,9.805e-05,2]
[348708095,1736737832712,-150.0,9.807e-05,2]
[348708096,1736737832721,-150.0,9.811e-05,2]
[348708097,1736737832731,-200.702,9.813e-05,2]
[348708098,1736737832740,-1500.0,9.826e-05,2]
[348708099,1736737832749,-222.73349996,9.826e-05,2]
[348708100,1736737832759,-206.77,9.836e-05,2]
[348708101,1736737832768,-301.03,9.836e-05,2]
[348708102,1736737832778,-990.16,9.836e-05,2]
[348708103,1736737832787,-150.0,9.836e-05,2]
[348708104,1736737832796,-697.11,9.836e-05,2]
[348708105,1736737832805,-150.0,9.836e-05,2]
[348708106,1736737832814,-150.0,9.836e-05,2]
[348708108,1736737832823,-150.0,9.842e-05,2]
[348708110,1736737832834,-150.0,9.845e-05,2]
[348708111,1736737832844,-150.0,9.854e-05,2]
[348708112,1736737832853,-150.0,9.857e-05,2]
[348708113,1736737832861,-150.0,9.859e-05,2]
[348708114,1736737832870,-1500.0,9.86e-05,2]
[348708115,1736737832880,-150.0,9.87e-05,2]
[348708116,1736737832890,-165.44622387,9.887e-05,2]
[348708117,1736737832899,-150.46149497,9.892e-05,2]
[348708118,1736737832910,-420.0,9.892e-05,2]
[348708119,1736737832921,-2500.0,9.896e-05,2]
[348708120,1736737832932,-5000.0,9.897e-05,2]
[348708121,1736737832941,-1617.4816,9.898e-05,2]
[348708122,1736737832950,-500.0,9.898e-05,2]
[348708123,1736737832960,-31561.2389,9.898e-05,2]
[348708124,1736737832969,-867.0423,9.898e-05,2]
[348708125,1736737832979,-6566.547,9.898e-05,2]
[348708126,1736737832988,-150.0,9.902e-05,2]
[348708127,1736737832998,-150.0,9.929e-05,2]
[348708128,1736737833007,-150.0,9.929e-05,2]
[348708129,1736737833016,-150.0,9.93e-05,2]
[348708130,1736737833027,-583.46,9.934e-05,2]
[348708131,1736737833036,-150.0,9.938e-05,2]
[348708132,1736737833045,-150.0,9.939e-05,2]
[348708133,1736737833054,-150.0,9.944e-05,2]
[348708134,1736737833064,-150.0,9.946e-05,2]
[348708135,1736737833074,-1500.0,9.948e-05,2]
[348708136,1736737833083,-1000.0,9.949e-05,2]
[348708137,1736737833092,-150.0,9.949e-05,2]
[348708138,1736737833101,-150.0,9.958e-05,2]
[348708139,1736737833110,-150.0,9.963e-05,2]
[348708140,1736737833120,-150.0,9.963e-05,2]
[348708141,1736737833129,-150.0,9.964e-05,2]
[348708142,1736737833138,-150.0,9.966e-05,2]
[348708143,1736737833147,-1000.0,9.97e-05,2]
[348708144,1736737833157,-1318.55976069,9.97e-05,2]
[348708145,1736737833166,-1000.0,9.97e-05,2]
[348708146,1736737833175,-698.25703869,9.97e-05,2]
[348708147,1736737833185,-500.0,9.973e-05,2]
[348708148,1736737833194,-2103.55365852,9.976e-05,2]
[348708149,1736737833204,-2103.55365852,9.983e-05,2]
[348708150,1736737833214,-1500.0,9.984e-05,2]
[348708151,1736737833223,-2103.55365852,9.984e-05,2]
[348708152,1736737833233,-1500.0,9.985e-05,2]
[348708153,1736737833243,-2103.55365852,9.991e-05,2]
[348708154,1736737833252,-2103.55365852,9.993e-05,2]
[348708155,1736737833261,-1511.56563787,9.995e-05,2]
[348708156,1736737833271,-759.61,9.995e-05,2]
[348708157,1736737833284,-580.03,9.995e-05,2]
[348708158,1736737833294,-500.0,9.995e-05,2]
[348708159,1736737833303,-1646.42,9.995e-05,2]
[348708160,1736737833313,-500.0,9.995e-05,2]
[348708161,1736737833323,-1024.02,9.995e-05,2]
[348708162,1736737833332,-500.0,9.995e-05,2]
[348708163,1736737833341,-577.83,9.995e-05,2]
[348708164,1736737833350,-842.63,9.995e-05,2]
[348708165,1736737833359,-1543.97,9.995e-05,2]
[348708166,1736737833369,-503.66123074,9.995e-05,2]
[348708167,1736737833378,-500.0,9.995e-05,2]
[348708168,1736737833387,-607.06,9.995e-05,2]
[348708169,1736737833397,-500.0,9.995e-05,2]
[348708170,1736737833406,-500.0,9.995e-05,2]
[348708171,1736737833416,-1116.29,9.995e-05,2]
[348708172,1736737833425,-1537.0,9.995e-05,2]
[348708173,1736737833435,-500.0,9.995e-05,2]
[348708174,1736737833444,-825.96,9.995e-05,2]
[348708175,1736737833453,-500.0,9.995e-05,2]
[348708176,1736737833462,-699.66,9.995e-05,2]
[348708177,1736737833472,-500.0,9.995e-05,2]
[348708178,1736737833481,-500.0,9.995e-05,2]
[348708179,1736737833491,-500.0,9.996e-05,2]
[348708180,1736737833500,-500.0,9.996e-05,2]
[348708181,1736737833510,-500.0,9.996e-05,2]
[348708182,1736737833520,-500.0,9.996e-05,2]
[348708183,1736737833533,-501.08243367,9.996e-05,2]
[348708184,1736737833542,-577.34402924,9.996e-05,2]
[348708185,1736737833552,-500.0,9.996e-05,2]
[348708186,1736737833561,-500.0,9.996e-05,2]
[348708187,1736737833571,-503.5652404,9.996e-05,2]
[348708188,1736737833580,-547.89985272,9.996e-05,2]
[348708189,1736737833589,-500.0,9.996e-05,2]
[348708190,1736737833599,-500.0,9.996e-05,2]
[348708191,1736737833608,-500.0,9.996e-05,2]
[348708192,1736737833617,-500.0,9.996e-05,2]
[348708193,1736737833627,-500.0,9.996e-05,2]
[348708194,1736737833636,-583.14,9.996e-05,2]
[348708195,1736737833645,-500.0,9.996e-05,2]
[348708196,1736737833655,-500.0,9.996e-05,2]
[348708197,1736737833664,-500.0,9.996e-05,2]
[348708198,1736737833674,-500.0,9.996e-05,2]
[348708199,1736737833683,-500.0,9.996e-05,2]
[348708200,1736737833692,-501.15925114,9.996e-05,2]
[348708201,1736737833701,-500.0,9.996e-05,2]
[348708202,1736737833710,-500.0,9.996e-05,2]
[348708203,1736737833719,-500.0,9.996e-05,2]
[348708204,1736737833728,-500.0,9.996e-05,2]
[348708205,1736737833737,-500.0,9.996e-05,2]
[348708206,1736737833746,-500.0,9.996e-05,2]
[348708207,1736737833755,-500.0,9.996e-05,2]
[348708208,1736737833764,-500.0,9.996e-05,2]
[348708209,1736737833774,-500.0,9.996e-05,2]
[348708210,1736737833783,-502.21994434,9.996e-05,2]
[348708211,1736737833792,-500.0,9.996e-05,2]
[348708212,1736737833802,-500.0,9.996e-05,2]
[348708213,1736737833811,-500.0,9.996e-05,2]
[348708214,1736737833820,-500.0,9.996e-05,2]
[348708215,1736737833833,-160.60321796,9.996e-05,2]
[348708216,1736737833842,-415.51322068,9.996e-05,2]
[348708217,1736737833851,-176.15955361,9.996e-05,2]
[348708218,1736737833860,-500.0,9.996e-05,2]
[348708219,1736737833870,-500.0,9.996e-05,2]
[348708220,1736737833880,-500.0,9.996e-05,2]
[348708221,1736737833890,-559.17,9.996e-05,2]
[348708222,1736737833900,-500.0,9.996e-05,2]
[348708223,1736737833910,-504.67679154,9.996e-05,2]
[348708224,1736737833922,-505.2715018,9.996e-05,2]
[348708225,1736737833933,-505.33106508,9.996e-05,2]
[348708226,1736737833942,-500.0,9.996e-05,2]
[348708227,1736737833951,-343.57311228,9.996e-05,2]
[348708228,1736737833961,-500.0,9.996e-05,2]
[348708229,1736737833971,-508.74741718,9.996e-05,2]
[348708230,1736737833980,-505.94126943,9.996e-05,2]
[348708231,1736737833990,-503.61492423,9.996e-05,2]
[348708232,1736737833999,-511.59253906,9.996e-05,2]
[348708233,1736737834010,-505.31299955,9.996e-05,2]
[348708234,1736737834020,-500.0,9.996e-05,2]
[348708235,1736737834031,-491.49990743,9.996e-05,2]
[348708236,1736737834041,-508.67345222,9.996e-05,2]
[348708237,1736737834051,-513.03445676,9.996e-05,2]
[348708238,1736737834061,-169.37553502,9.996e-05,2]
[348708239,1736737834071,-500.0,9.996e-05,2]
[348708240,1736737834081,-500.0,9.996e-05,2]
[348708241,1736737834091,-507.5911533,9.996e-05,2]
[348708242,1736737834101,-500.0,9.996e-05,2]
[348708243,1736737834111,-500.0,9.996e-05,2]
[348708244,1736737834121,-500.0,9.996e-05,2]
[348708245,1736737834131,-503.67230626,9.996e-05,2]
[348708246,1736737834141,-500.0,9.996e-05,2]
[348708247,1736737834155,-500.0,9.996e-05,2]
[348708248,1736737834166,-338.95243022,9.996e-05,2]
[348708249,1736737834176,-502.43406106,9.996e-05,2]
[348708250,1736737834186,-500.0,9.996e-05,2]
[348708251,1736737834197,-504.44890215,9.996e-05,2]
[348708252,1736737834207,-500.0,9.996e-05,2]
[348708253,1736737834217,-500.0,9.996e-05,2]
[348708254,1736737834228,-500.0,9.996e-05,2]
[348708255,1736737834238,-500.0,9.996e-05,2]
[348708256,1736737834248,-500.0,9.996e-05,2]
[348708257,1736737834258,-500.0,9.996e-05,2]
[348708258,1736737834269,-436.1686531,9.996e-05,2]
[348708259,1736737834281,-500.0,9.996e-05,2]
[348708260,1736737834292,-500.0,9.996e-05,2]
[348708261,1736737834302,-500.0,9.996e-05,2]
[348708262,1736737834312,-500.0,9.996e-05,2]
[348708263,1736737834322,-500.0,9.996e-05,2]
[348708264,1736737834332,-500.0,9.996e-05,2]
[348708265,1736737834343,-500.0,9.996e-05,2]
[348708266,1736737834353,-500.0,9.996e-05,2]
[348708267,1736737834363,-500.0,9.996e-05,2]
[348708268,1736737834373,-500.0,9.996e-05,2]
[348708269,1736737834383,-500.0,9.996e-05,2]
[348708270,1736737834393,-500.0,9.996e-05,2]
[348708271,1736737834403,-500.0,9.996e-05,2]
[348708272,1736737834413,-500.0,9.996e-05,2]
[348708273,1736737834422,-500.0,9.996e-05,2]
[348708274,1736737834432,-500.0,9.996e-05,2]
[348708275,1736737834442,-511.35,9.996e-05,2]
[348708276,1736737834452,-500.0,9.996e-05,2]
[348708277,1736737834461,-500.0,9.996e-05,2]
[348708278,1736737834471,-305.76278006,9.996e-05,2]
[348708279,1736737834480,-500.0,9.996e-05,2]
[348708280,1736737834490,-500.0,9.996e-05,2]
[348708281,1736737834499,-500.0,9.996e-05,2]
[348708282,1736737834509,-500.0,9.996e-05,2]
[348708283,1736737834519,-434.58923679,9.996e-05,2]
[348708284,1736737834532,-500.0,9.996e-05,2]
[348708285,1736737834542,-500.0,9.996e-05,2]
[348708286,1736737834552,-500.0,9.996e-05,2]
[348708287,1736737834562,-500.0,9.996e-05,2]
[348708288,1736737834572,-514.58271269,9.996e-05,2]
[348708289,1736737834582,-500.0,9.996e-05,2]
[348708290,1736737834592,-523.12176492,9.996e-05,2]
[348708291,1736737834602,-500.0,9.996e-05,2]
[348708292,1736737834612,-455.01139839,9.996e-05,2]
[348708293,1736737834622,-500.0,9.996e-05,2]
[348708294,1736737834632,-500.0,9.996e-05,2]
[348708295,1736737834642,-500.0,9.996e-05,2]
[348708296,1736737834651,-500.0,9.996e-05,2]
[348708297,1736737834661,-500.0,9.996e-05,2]
[348708298,1736737834671,-500.0,9.996e-05,2]
[348708299,1736737834681,-284.44026093,9.996e-05,2]
[348708300,1736737834691,-500.0,9.996e-05,2]
[348708301,1736737834701,-500.0,9.996e-05,2]
[348708302,1736737834710,-503.67419616,9.996e-05,2]
[348708303,1736737834720,-511.17255937,9.996e-05,2]
[348708304,1736737834731,-500.0,9.996e-05,2]
[348708305,1736737834741,-500.0,9.996e-05,2]
[348708306,1736737834751,-500.0,9.996e-05,2]
[348708307,1736737834761,-500.0,9.996e-05,2]
[348708308,1736737834771,-500.0,9.996e-05,2]
[348708309,1736737834783,-500.0,9.996e-05,2]
[348708310,1736737834793,-500.0,9.996e-05,2]
[348708311,1736737834802,-500.0,9.996e-05,2]
[348708312,1736737834812,-500.0,9.996e-05,2]
[348708313,1736737834822,-506.14534337,9.996e-05,2]
[348708314,1736737834831,-502.2018994,9.996e-05,2]
[348708315,1736737834844,-500.0,9.996e-05,2]
[348708316,1736737834853,-504.65717108,9.996e-05,2]
[348708317,1736737834864,-500.0,9.996e-05,2]
[348708318,1736737834873,-500.0,9.996e-05,2]
[348708319,1736737834883,-500.0,9.996e-05,2]
[348708320,1736737834893,-516.33,9.996e-05,2]
[348708321,1736737834902,-500.0,9.996e-05,2]
[348708322,1736737834914,-500.0,9.996e-05,2]
[348708323,1736737834923,-500.0,9.996e-05,2]
[348708324,1736737834933,-502.7828665,9.996e-05,2]
[348708325,1736737834943,-500.0,9.996e-05,2]
[348708326,1736737834952,-496.49,9.996e-05,2]
[348708327,1736737834962,-513.72447128,9.996e-05,2]
[348708328,1736737834982,-500.0,9.996e-05,2]
[348708329,1736737834991,-500.0,9.996e-05,2]
[348708330,1736737835001,-500.0,9.996e-05,2]
[348708331,1736737835010,-171.00752392,9.996e-05,2]
[348708332,1736737835020,-500.0,9.996e-05,2]
[348708333,1736737835031,-504.73932922,9.996e-05,2]
[348708334,1736737835040,-500.0,9.996e-05,2]
[348708335,1736737835050,-500.0,9.996e-05,2]
[348708336,1736737835059,-500.0,9.996e-05,2]
[348708337,1736737835069,-500.0,9.996e-05,2]
[348708338,1736737835079,-500.0,9.996e-05,2]
[348708339,1736737835088,-500.0,9.996e-05,2]
[348708340,1736737835098,-500.0,9.996e-05,2]
[348708341,1736737835108,-1234.69,9.996e-05,2]
[348708342,1736737835117,-500.56536831,9.996e-05,2]
[348708343,1736737835127,-500.0,9.996e-05,2]
[348708344,1736737835137,-533.6,9.996e-05,2]
[348708345,1736737835146,-505.96196802,9.996e-05,2]
[348708346,1736737835156,-500.0,9.996e-05,2]
[348708347,1736737835166,-502.7269531,9.996e-05,2]